bitfinex-derivatives/quotes_SOLF0:USTF0_20260213
["timestamp","ask_amount","ask_price","bid_price","bid_amount"]
[1771000322623,8.7338929,84.43,84.341,26.27828892]
[1771000322819,165.8468,84.471,84.341,26.27828892]
[1771000322820,10.6671,84.427,84.341,26.27828892]
[1771000323014,165.5344,84.63,84.426,26.27828892]
[1771000323216,165.5344,84.63,84.388,498.0191]
[1771000323217,10.6383,84.656,84.53,8.7338929]
[1771000323413,8.7338929,84.64,84.53,8.7338929]
[1771000323613,8.7338929,84.63,84.525,26.27828892]
[1771000323812,10.6432,84.616,84.525,26.27828892]
[1771000324020,8.7338929,84.63,84.53,8.7338929]
[1771000324221,8.7338929,84.65,84.531,26.27828892]
[1771000324414,165.4278,84.685,84.494,147.5]
[1771000324415,94.82,84.662,84.541,26.27828892]
[1771000324618,8.7338929,84.66,84.551,26.27828892]
[1771000324819,10.6393,84.647,84.551,26.27828892]
[1771000325022,25.48832581,84.599,84.524,26.27828892]
[1771000325226,165.5534,84.62,84.413,165.9582]
[1771000325227,25.48832581,84.579,84.484,26.27828892]
[1771000325524,25.48832581,84.605,84.511,26.27828892]
[1771000325932,8.7338929,84.6,84.511,26.27828892]
[1771000326222,25.48832581,84.598,84.511,26.27828892]
[1771000326419,10.6458,84.595,84.511,26.27828892]
[1771000326614,8.7338929,84.58,84.511,26.27828892]
[1771000326821,25.48832581,84.579,84.491,26.27828892]
[1771000327019,25.48832581,84.559,84.466,26.27828892]
[1771000327221,25.48832581,84.539,84.466,26.27828892]
[1771000327526,25.48832581,84.535,84.442,26.27828892]
[1771000327730,8.7338929,84.58,84.49,8.7338929]
[1771000327925,8.7338929,84.6,84.511,26.27828892]
[1771000328127,25.48832581,84.605,84.511,26.27828892]
[1771000328432,94.7,84.631,84.551,26.27828892]
[1771000328724,94.7,84.631,84.499,165.7901]
[1771000328725,135.84,84.654,84.561,26.27828892]
[1771000328919,8.7338929,84.66,84.58,26.27828892]
[1771000329121,25.48832581,84.656,84.56,8.7338929]
[1771000329324,25.48832581,84.656,84.551,26.27828892]
[1771000329325,8.7338929,84.64,84.551,26.27828892]
[1771000329520,8.7338929,84.64,84.52,94.66]
[1771000329521,25.48832581,84.619,84.525,26.27828892]
[1771000329724,25.48832581,84.617,84.525,26.27828892]
[1771000329925,25.48832581,84.615,84.525,26.27828892]
[1771000330430,136.1,84.614,84.525,26.27828892]
[1771000330740,8.7338929,84.62,84.531,26.27828892]
[1771000331526,25.48832581,84.64,84.551,26.27828892]
[1771000331832,165.4139,84.692,84.55,8.7338929]
[1771000331833,120.08832581,84.666,84.571,26.27828892]
[1771000332030,10.6381,84.656,84.571,26.27828892]
[1771000332222,120.08832581,84.666,84.55,8.7338929]
[1771000332223,25.48832581,84.649,84.55,8.7338929]
[1771000332533,10.6393,84.647,84.551,26.27828892]
[1771000332737,25.48832581,84.649,84.551,26.27828892]
[1771000332927,25.48832581,84.649,84.57,8.7338929]
[1771000333125,25.48832581,84.752,84.631,26.27828892]
[1771000333330,165.2502,84.776,84.63,8.7338929]
[1771000333331,25.48832581,84.729,84.63,8.7338929]
[1771000333530,25.48832581,84.729,84.602,26.27828892]
[1771000333531,8.7338929,84.71,84.61,8.7338929]
[1771000333727,25.48832581,84.703,84.611,26.27828892]
[1771000334125,25.48832581,84.703,84.63,8.7338929]
[1771000334332,94.54,84.718,84.631,26.27828892]
[1771000335126,10.631,84.714,84.631,26.27828892]
[1771000335328,25.48832581,84.713,84.631,26.27828892]
[1771000336128,25.48832581,84.692,84.603,26.27828892]
[1771000336330,21.97555042,84.69,84.574,26.27828892]
[1771000336527,25.48832581,84.688,84.574,26.27828892]
[1771000336728,18.48832581,84.683,84.574,26.27828892]
[1771000337136,10.6351,84.681,84.574,26.27828892]
[1771000337328,165.3281,84.736,84.55,21.97555042]
[1771000337329,21.97555042,84.71,84.591,26.27828892]
[1771000337635,301.37225426,84.772,84.591,26.27828892]
[1771000337636,21.97555042,84.69,84.591,26.27828892]
[1771000337831,21.97555042,84.68,84.591,26.27828892]
[1771000338035,136.82,84.681,84.591,26.27828892]
[1771000338235,10.6352,84.68,84.591,26.27828892]
[1771000338431,136.84,84.679,84.591,26.27828892]
[1771000338637,136.84,84.679,84.505,165.7774]
[1771000338638,25.48832581,84.659,84.565,26.27828892]
[1771000338830,25.48832581,84.658,84.565,26.27828892]
[1771000340140,165.3606,84.719,84.53,21.97555042]
[1771000340141,136.92,84.672,84.571,26.27828892]
[1771000340336,25.48832581,84.739,84.611,26.27828892]
[1771000340636,25.48832581,84.72,84.616,26.27828892]
[1771000341546,25.48832581,84.719,84.616,26.27828892]
[1771000341945,25.48832581,84.719,84.618,26.27828892]
[1771000342544,94.42,84.732,84.625,26.27828892]
[1771000342744,94.42,84.732,84.594,102.6]
[1771000342745,25.48832581,84.744,84.631,26.27828892]
[1771000343240,25.48832581,84.739,84.633,26.27828892]
[1771000343440,25.48832581,84.737,84.633,26.27828892]
[1771000343747,10.6291,84.728,84.633,26.27828892]
[1771000343947,25.48832581,84.727,84.633,26.27828892]
[1771000344149,25.48832581,84.719,84.602,26.27828892]
[1771000344341,25.48832581,84.7,84.602,26.27828892]
[1771000345248,20.48832581,84.7,84.602,26.27828892]
[1771000345439,10.6328,84.699,84.602,26.27828892]
[1771000345840,10.6328,84.699,84.603,26.27828892]
[1771000346041,21.97555042,84.71,84.603,26.27828892]
[1771000346341,137.12,84.728,84.603,26.27828892]
[1771000346538,21.97555042,84.78,84.641,26.27828892]
[1771000346738,21.97555042,84.81,84.681,26.27828892]
[1771000347043,165.0719,84.867,84.66,165.4739]
[1771000347044,94.36,84.822,84.717,26.27828892]
[1771000347241,22.19733187,84.86,84.721,26.27828892]
[1771000347451,22.19733187,84.86,84.741,26.27828892]
[1771000347452,24.51805128,84.859,84.741,26.27828892]
[1771000347647,24.51805128,84.859,84.747,26.27828892]
[1771000348148,10.6129,84.858,84.747,26.27828892]
[1771000348444,24.51805128,84.859,84.747,26.27828892]
[1771000348745,164.9345,84.938,84.716,165.3639]
[1771000348746,24.61143168,84.91,84.791,26.27828892]
[1771000348939,24.61143168,84.91,84.811,26.27828892]
[1771000349139,24.61143168,84.91,84.824,10.6171]
[1771000349346,24.61143168,84.91,84.785,26.27828892]
[1771000349541,24.34274552,84.899,84.791,26.27828892]
[1771000349743,24.34274552,84.899,84.798,10.6203]
[1771000349947,24.39385485,84.879,84.771,26.27828892]
[1771000350141,21.97555042,84.86,84.771,26.27828892]
[1771000350350,24.39385485,84.859,84.741,26.27828892]
[1771000350652,108.48,84.868,84.741,26.27828892]
[1771000350946,24.36089406,84.851,84.747,26.82847872]
[1771000351146,21.97555042,84.86,84.747,26.82847872]
[1771000351147,22.55076711,84.839,84.747,26.82847872]
[1771000351347,22.55076711,84.839,84.669,165.456]
[1771000351348,22.55076711,84.796,84.701,26.82847872]
[1771000351943,22.55076711,84.796,84.704,26.82847872]
[1771000352651,22.6214523,84.823,84.726,26.82847872]
[1771000352847,22.6214523,84.819,84.726,26.82847872]
[1771000353048,22.6214523,84.819,84.726,37.45777872]
[1771000353356,22.6214523,84.819,84.727,26.82847872]
[1771000353645,22.6214523,84.819,84.729,10.6289]
[1771000354052,22.29084715,84.817,84.727,26.82847872]
[1771000354449,159.85555042,84.82,84.727,26.82847872]
[1771000354450,22.32140996,84.815,84.727,26.82847872]
[1771000354641,22.32140996,84.814,84.727,26.82847872]
[1771000354841,22.32140996,84.814,84.679,26.82847872]
[1771000355042,23.16368735,84.779,84.679,26.82847872]
[1771000355248,165.1564,84.824,84.679,26.82847872]
[1771000355249,23.16368735,84.759,84.679,26.82847872]
[1771000355645,23.19408833,84.756,84.679,26.82847872]
[1771000356551,23.19408833,84.756,84.654,37.46687872]
[1771000356861,23.23154402,84.752,84.654,37.46687872]
[1771000357153,23.23154402,84.752,84.655,24.8568678]
[1771000357356,24.08377122,84.75,84.655,24.8568678]
[1771000357655,24.11292342,84.739,84.655,24.8568678]
[1771000357846,24.11292342,84.719,84.629,24.8568678]
[1771000359051,24.14982721,84.717,84.629,24.8568678]
[1771000359352,24.14982721,84.717,84.617,24.8568678]
[1771000359651,24.43965545,84.699,84.62,24.8568678]
[1771000360057,24.44729001,84.683,84.599,259.74269978]
[1771000360447,24.44729001,84.683,84.6,24.8568678]
[1771000360652,24.47555753,84.68,84.6,24.8568678]
[1771000360852,24.47555753,84.679,84.6,24.8568678]
[1771000361053,24.23428587,84.677,84.6,24.8568678]
[1771000361255,138.32,84.676,84.6,24.8568678]
[1771000361452,24.26218611,84.675,84.6,24.8568678]
[1771000361651,10.6364,84.671,84.6,24.8568678]
[1771000361855,24.26218611,84.675,84.575,24.8568678]
[1771000362247,24.26942305,84.673,84.575,24.8568678]
[1771000362652,24.2971228,84.659,84.575,24.8568678]
[1771000362959,10.6401,84.641,84.575,24.8568678]
[1771000363260,10.6401,84.641,84.505,165.7777]
[1771000363261,46.1640748,84.64,84.552,24.8568678]
[1771000363554,24.21597219,84.632,84.552,24.8568678]
[1771000364353,149.1614,84.631,84.552,24.8568678]
[1771000364551,24.25007698,84.63,84.511,24.8568678]
[1771000364947,24.25007698,84.63,84.507,260.0144]
[1771000364948,10.6416,84.629,84.554,24.8568678]
[1771000365153,24.25007698,84.63,84.554,24.8568678]
[1771000365655,10.6428,84.619,84.554,24.8568678]
[1771000366558,138.5,84.648,84.557,24.8568678]
[1771000366762,46.1804523,84.63,84.523,24.8568678]
[1771000366963,24.20490188,84.629,84.534,24.8568678]
[1771000367866,24.20490188,84.629,84.544,24.8568678]
[1771000368358,24.20490188,84.629,84.522,24.8568678]
[1771000368552,24.3678323,84.619,84.522,24.8568678]
[1771000368761,10.6444,84.607,84.53,24.8568678]
[1771000369063,24.3678323,84.619,84.53,24.8568678]
[1771000369457,35.0106323,84.619,84.543,10.6523]
[1771000369663,35.0106323,84.619,84.53,24.8568678]
[1771000369664,24.3678323,84.619,84.53,24.8568678]
[1771000370162,10.6434,84.615,84.541,35.5093678]
[1771000370556,10.6434,84.615,84.497,165.7937]
[1771000370557,24.3678323,84.619,84.542,24.8568678]
[1771000370765,10.643,84.618,84.551,10.6513]
[1771000370961,24.3678323,84.619,84.542,24.8568678]
[1771000371359,24.60631089,84.643,84.561,24.8568678]
[1771000371863,24.63116589,84.679,84.595,24.8568678]
[1771000372263,24.6376297,84.705,84.642,10.6399]
[1771000372570,24.6376297,84.705,84.631,24.8568678]
[1771000373069,24.6376297,84.705,84.597,24.8568678]
[1771000373458,24.19795813,84.704,84.597,24.8568678]
[1771000374568,10.6345,84.685,84.618,10.6428]
[1771000374864,10.6345,84.685,84.597,24.8568678]
[1771000374865,24.19795813,84.704,84.597,24.8568678]
[1771000375066,22.75925632,84.729,84.636,24.8568678]
[1771000375777,22.75925632,84.729,84.663,10.6372]
[1771000376171,10.6328,84.699,84.637,10.6405]
[1771000376365,22.78823077,84.719,84.636,24.8568678]
[1771000377368,10.6304,84.718,84.658,10.6379]
[1771000377569,10.6304,84.718,84.636,24.8568678]
[1771000377769,22.78823077,84.719,84.636,24.8568678]
[1771000378166,114.86,84.74,84.66,24.8568678]
[1771000378367,22.97662563,84.742,84.66,24.8568678]
[1771000378771,165.2247,84.789,84.62,32.97332232]
[1771000378772,10.957809,84.911,84.751,495.8911]
[1771000379071,19.02913718,84.885,84.741,24.8568678]
[1771000379371,19.02913718,84.879,84.764,17.8568678]
[1771000379567,19.02913718,84.879,84.765,8.91887105]
[1771000379766,19.02913718,84.879,84.796,10.6205]
[1771000380162,19.02913718,84.879,84.81,10.6188]
[1771000380565,117.22,84.878,84.81,10.6188]
[1771000380768,236.32,84.92,84.778,165.2427]
[1771000380769,26.02564865,84.905,84.778,165.2427]
[1771000380968,26.02564865,84.931,84.833,165.1371]
[1771000381288,25.01702656,84.958,84.85,32.97332232]
[1771000381579,25.01702656,84.958,84.87,26.62207211]
[1771000381968,128.28,84.963,84.909,10.6064]
[1771000382170,148.2,84.967,84.909,10.6064]
[1771000382371,148.22,84.967,84.909,10.6064]
[1771000382570,25.04371423,84.984,84.923,10.6046]
[1771000382772,25.04371423,84.984,84.894,26.62207211]
[1771000382969,173.30371423,84.984,84.894,26.62207211]
[1771000383166,148.26,84.984,84.943,10.6022]
[1771000383471,25.35631883,85.046,84.921,26.62207211]
[1771000383677,94.22,85.032,84.955,10.6007]
[1771000384173,94.22,85.032,84.94,10.6025]
[1771000384371,25.35992074,85.021,84.924,26.62207211]
[1771000384578,25.35992074,85.021,84.856,165.0916]
[1771000384579,25.38540682,85.009,84.896,26.62207211]
[1771000384873,25.38540682,85.009,84.841,165.1208]
[1771000384874,25.38540682,84.979,84.868,26.62207211]
[1771000385076,25.38540682,84.979,84.831,26.62207211]
[1771000385280,25.38540682,84.979,84.855,10.6131]
[1771000385471,23.12719158,84.977,84.855,10.6131]
[1771000385870,23.15268708,84.959,84.855,10.6131]
[1771000386070,23.15268708,84.959,84.798,322.7637]
[1771000386071,23.15521549,84.939,84.808,26.62207211]
[1771000386279,32.97332232,84.94,84.808,26.62207211]
[1771000386280,23.15521549,84.937,84.808,26.62207211]
[1771000386478,23.15521549,84.937,84.858,10.6128]
[1771000386667,23.18091408,84.935,84.814,26.62207211]
[1771000386868,23.18091408,84.919,84.814,26.62207211]
[1771000387274,32.97332232,84.88,84.771,26.62207211]
[1771000387580,24.94810506,84.859,84.801,10.6198]
[1771000387770,24.94810506,84.859,84.755,165.2882]
[1771000387771,24.97361709,84.925,84.819,26.62207211]
[1771000388076,24.97696562,84.923,84.845,10.6143]
[1771000388280,24.97696562,84.921,84.845,10.6143]
[1771000388478,24.97696562,84.921,84.81,32.97332232]
[1771000388479,24.97696562,84.921,84.833,191.75837211]
[1771000388679,148.5,84.932,84.86,10.6125]
[1771000388873,25.00205124,84.931,84.836,26.62207211]
[1771000389073,25.00205124,84.931,84.843,10.6146]
[1771000389374,25.00205124,84.931,84.769,157.58]
[1771000389375,148.56,84.948,84.844,26.62207211]
[1771000389580,235.92,84.964,84.884,10.6095]
[1771000389776,148.68,84.963,84.885,26.62207211]
[1771000390172,148.68,84.963,84.86,32.97332232]
[1771000390173,24.69551982,84.962,84.86,32.97332232]
[1771000390377,24.69551982,84.962,84.861,26.62207211]
[1771000390572,24.69551982,84.962,84.873,10.6109]
[1771000390972,24.16531574,84.96,84.873,10.6109]
[1771000391180,24.16531574,84.96,84.865,10.6119]
[1771000391479,24.16531574,84.939,84.82,26.62207211]
[1771000391681,24.16531574,84.939,84.845,26.62207211]
[1771000392080,235.92,84.964,84.815,26.62207211]
[1771000392081,24.19196642,84.937,84.815,26.62207211]
[1771000392384,24.19196642,84.937,84.831,10.6161]
[1771000392880,24.21592634,84.963,84.845,26.62207211]
[1771000393078,235.92,84.964,84.845,26.62207211]
[1771000393079,23.31237789,84.939,84.845,26.62207211]
[1771000393275,23.31237789,84.939,84.811,26.62207211]
[1771000393476,23.33586727,84.916,84.811,37.24077211]
[1771000393676,23.33586727,84.916,84.811,26.62207211]
[1771000393876,23.33586727,84.899,84.771,26.62207211]
[1771000394081,164.9058,84.953,84.771,26.62207211]
[1771000394082,23.33818279,84.879,84.771,26.62207211]
[1771000394383,23.33818279,84.877,84.771,26.62207211]
[1771000394679,149.16,84.876,84.783,10.6221]
[1771000394874,23.36178869,84.875,84.783,10.6221]
[1771000395077,149.16,84.874,84.771,26.62207211]
[1771000395280,164.8883,84.962,84.771,26.62207211]
[1771000395281,23.71958519,84.901,84.799,26.62207211]
[1771000395674,149.18,84.9,84.811,26.62207211]
[1771000395883,23.7424169,84.899,84.811,26.62207211]
[1771000396081,23.7424169,84.899,84.752,165.2951]
[1771000396082,23.74481462,84.879,84.785,26.62207211]
[1771000396783,23.76758899,84.876,84.786,10.6218]
[1771000397384,149.28,84.875,84.786,10.6218]
[1771000398286,149.26,84.874,84.799,10.6201]
[1771000398581,24.42882079,84.873,84.785,26.62207211]
[1771000398789,149.3,84.872,84.787,26.62207211]
[1771000399284,149.32,84.871,84.787,26.62207211]
[1771000400082,24.61037065,84.87,84.787,26.62207211]
[1771000400282,24.61037065,84.87,84.751,26.62207211]
[1771000400681,24.63466095,84.866,84.773,10.6234]
[1771000400982,24.63466095,84.859,84.751,26.62207211]
[1771000401187,24.58384118,84.889,84.756,26.62207211]
[1771000401379,24.58384118,84.882,84.805,10.6194]
[1771000401580,24.58384118,84.882,84.785,26.62207211]
[1771000401775,24.60508909,84.869,84.777,10.6229]
[1771000402388,32.97332232,84.87,84.777,10.6229]
[1771000402389,24.60759546,84.867,84.777,10.6229]
[1771000402780,24.62871129,84.865,84.751,26.62207211]
[1771000402980,149.52,84.864,84.771,26.62207211]
[1771000403182,24.62871129,84.865,84.808,10.619]
[1771000403376,149.54,84.863,84.808,10.619]
[1771000403577,149.54,84.863,84.771,26.62207211]
[1771000403781,24.90829512,84.89,84.817,10.6179]
[1771000404084,149.56,84.889,84.799,26.62207211]
[1771000404590,149.56,84.889,84.837,10.6153]
[1771000404981,149.56,84.889,84.799,26.62207211]
[1771000405183,25.56404479,84.888,84.799,26.62207211]
[1771000405790,25.58453421,84.884,84.815,10.6181]
[1771000406292,25.58727873,84.882,84.799,26.62207211]
[1771000406590,149.6,84.881,84.799,26.62207211]
[1771000406780,25.60762962,84.88,84.813,10.6183]
[1771000406977,25.60762962,84.88,84.799,26.62207211]
[1771000408189,149.64,84.879,84.799,26.62207211]
[1771000408388,25.72211074,84.878,84.81,10.6188]
[1771000408591,235.8,84.939,84.799,26.62207211]
[1771000408592,25.72211074,84.906,84.799,26.62207211]
[1771000408788,149.72,84.911,84.811,26.62207211]
[1771000408988,149.72,84.911,84.78,165.2393]
[1771000408989,149.7,84.95,84.851,26.62207211]
[1771000409296,25.88200059,84.955,84.851,26.62207211]
[1771000409297,149.82,84.949,84.851,26.62207211]
[1771000409485,25.90135524,84.948,84.851,26.62207211]
[1771000409890,149.82,84.949,84.81,26.62207211]
[1771000409891,25.90135524,84.929,84.81,26.62207211]
[1771000410191,10.6055,84.917,84.853,10.6134]
[1771000410592,25.92315418,84.916,84.853,10.6134]
[1771000410792,149.82,84.915,84.811,27.16563067]
[1771000411291,149.82,84.915,84.835,10.6156]
[1771000411292,25.73052153,84.914,84.835,10.6156]
[1771000411497,149.8,84.913,84.811,27.16563067]
[1771000411792,25.73052153,84.938,84.834,27.16563067]
[1771000411998,149.84,84.937,84.834,27.16563067]
[1771000412186,25.73052153,84.938,84.85,32.97332232]
[1771000412490,25.73052153,84.969,84.855,27.16563067]
[1771000412699,25.73052153,84.967,84.855,27.16563067]
[1771000413393,149.86,84.966,84.855,27.16563067]
[1771000413592,10.5996,84.964,84.882,27.16563067]
[1771000413994,25.73052153,84.964,84.882,27.16563067]
[1771000414193,25.73052153,84.964,84.903,10.6071]
[1771000414194,149.86,84.963,84.903,10.6071]
[1771000414399,25.73052153,84.964,84.882,27.16563067]
[1771000414597,149.88,84.966,84.882,27.16563067]
[1771000414899,10.6008,84.955,84.882,27.16563067]
[1771000415095,25.73052153,84.965,84.882,27.16563067]
[1771000415290,10.5983,84.975,84.882,27.16563067]
[1771000415498,24.88414112,84.99,84.891,27.16563067]
[1771000415687,149.94,84.989,84.891,27.16563067]
[1771000416093,24.88414112,84.99,84.938,10.6028]
[1771000416293,150.06,84.989,84.914,27.16563067]
[1771000416490,24.92151988,84.988,84.888,27.16563067]
[1771000416702,10.598,84.977,84.923,10.6046]
[1771000416902,150.14,84.987,84.888,27.16563067]
[1771000417197,24.68495272,84.985,84.888,27.16563067]
[1771000417511,32.97332232,85.0,84.888,27.16563067]
[1771000417512,24.70247654,84.979,84.888,27.16563067]
[1771000418198,164.7625,85.027,84.859,21.2254]
[1771000418199,24.70445888,84.999,84.895,25.61514747]
[1771000418592,24.72173951,84.996,84.895,25.61514747]
[1771000418794,24.72173951,84.996,84.906,21.2136]
[1771000418995,150.46,85.012,84.915,25.61514747]
[1771000419192,23.83399287,85.009,84.915,25.61514747]
[1771000419798,23.85105459,84.98,84.881,25.61514747]
[1771000420398,23.85271212,84.958,84.88,250.03637822]
[1771000420593,23.86968742,84.956,84.88,250.03637822]
[1771000420811,23.86968742,84.952,84.882,10.6097]
[1771000421206,24.06951845,84.95,84.858,25.61514747]
[1771000421404,10.6027,84.94,84.874,10.6107]
[1771000421705,24.08623566,84.939,84.831,25.61514747]
[1771000421899,150.48,84.949,84.807,25.61514747]
[1771000421900,24.08623566,84.909,84.807,25.61514747]
[1771000422105,10.6099,84.882,84.823,10.6172]
[1771000422406,24.08791917,84.88,84.782,25.61514747]
[1771000422601,24.08791917,84.88,84.783,9.01843804]
[1771000422803,24.08791917,84.88,84.784,9.01843804]
[1771000422999,150.46,84.879,84.786,25.61514747]
[1771000423198,24.614197,84.878,84.788,25.61514747]
[1771000423402,24.614197,84.878,84.763,165.2729]
[1771000423403,175.134197,84.878,84.79,25.61514747]
[1771000423704,10.6104,84.877,84.821,10.6174]
[1771000423904,10.6104,84.877,84.792,25.61514747]
[1771000424094,24.63254407,84.876,84.793,9.03375041]
[1771000424409,24.63254407,84.874,84.794,9.03375041]
[1771000424597,24.64908584,84.872,84.77,25.61514747]
[1771000424907,24.64908584,84.859,84.79,10.6213]
[1771000425096,24.64908584,84.859,84.77,25.61514747]
[1771000425295,150.64,84.858,84.8,10.62]
[1771000425607,150.64,84.867,84.801,34.64212852]
[1771000425810,24.45722804,84.865,84.775,25.61514747]
[1771000426000,24.45722804,84.859,84.776,9.03059727]
[1771000426302,24.45894566,84.857,84.751,25.61514747]
[1771000426501,10.6153,84.838,84.77,10.6237]
[1771000426704,24.45894566,84.857,84.771,9.0205265]
[1771000426904,150.74,84.856,84.753,25.61514747]
[1771000427102,24.06476333,84.855,84.755,25.61514747]
[1771000427301,150.78,84.854,84.757,25.61514747]
[1771000427501,24.06476333,84.853,84.759,25.61514747]
[1771000427701,10.6157,84.836,84.772,10.6235]
[1771000428100,24.06476333,84.853,84.759,25.61514747]
[1771000428312,24.06476333,84.853,84.76,9.01880246]
[1771000428501,24.06476333,84.853,84.761,9.01880246]
[1771000428698,10.6157,84.835,84.766,10.6242]
[1771000428904,24.09791241,84.849,84.735,374.04281091]
[1771000429203,32.97332232,84.85,84.735,374.04281091]
[1771000429204,24.18909074,84.829,84.761,10.6249]
[1771000429406,150.82,84.83,84.762,9.02033408]
[1771000429702,24.20456184,84.917,84.764,25.61514747]
[1771000429903,10.6111,84.872,84.799,10.6202]
[1771000430104,151.02,84.871,84.8,9.00655191]
[1771000430303,151.02,84.871,84.795,25.61514747]
[1771000430304,24.20611318,84.87,84.795,25.61514747]
[1771000430505,10.6133,84.855,84.793,10.6208]
[1771000430707,24.22135829,84.854,84.768,25.61514747]
[1771000430904,151.06,84.853,84.77,25.61514747]
[1771000431203,23.91611742,84.877,84.772,25.61514747]
[1771000431409,151.06,84.876,84.774,25.61514747]
[1771000431613,151.06,84.876,84.776,25.61514747]
[1771000431808,151.06,84.876,84.778,25.61514747]
[1771000432106,10.611,84.873,84.813,10.6184]
[1771000432816,23.94754601,84.873,84.782,25.61514747]
[1771000433009,23.94754601,84.873,84.786,25.61514747]
[1771000433310,22.71433692,84.871,84.808,10.619]
[1771000433808,22.72911133,84.866,84.797,10.6204]
[1771000434308,10.6134,84.854,84.797,10.6204]
[1771000434507,10.6134,84.854,84.742,165.3132]
[1771000434508,22.73018553,84.853,84.762,25.61514747]
[1771000434710,151.18,84.852,84.764,25.61514747]
[1771000434899,151.18,84.851,84.772,25.61514747]
[1771000435102,151.18,84.85,84.796,10.6205]
[1771000435305,151.16,84.85,84.796,10.6205]
[1771000435816,151.24,84.849,84.805,10.6193]
[1771000436314,151.24,84.849,84.774,25.61514747]
[1771000436606,22.86293209,84.868,84.776,25.61514747]
[1771000436804,151.36,84.867,84.778,25.61514747]
[1771000437009,151.36,84.867,84.78,25.61514747]
[1771000437212,22.86293209,84.868,84.782,25.61514747]
[1771000437510,22.86293209,84.868,84.781,9.00760583]
[1771000437511,151.34,84.866,84.784,25.61514747]
[1771000437706,151.34,84.866,84.786,25.61514747]
[1771000437904,151.34,84.866,84.788,25.61514747]
[1771000438104,151.34,84.866,84.79,25.61514747]
[1771000438310,151.34,84.866,84.792,25.61514747]
[1771000438513,22.69168698,84.865,84.769,25.61514747]
[1771000438712,22.69168698,84.863,84.771,25.61514747]
[1771000438903,22.69168698,84.863,84.773,25.61514747]
[1771000439099,21.88965518,84.88,84.775,25.61514747]
[1771000439302,22.35393133,84.899,84.801,25.61514747]
[1771000439606,32.97996917,84.862,84.778,25.61514747]
[1771000439911,151.34,84.861,84.78,25.61514747]
[1771000440111,22.36766917,84.862,84.782,25.61514747]
[1771000440112,151.32,84.86,84.782,25.61514747]
[1771000440314,151.34,84.859,84.806,10.6192]
[1771000440510,22.38200649,84.859,84.784,25.61514747]
[1771000440807,21.2134,84.908,84.785,9.00080008]
[1771000440808,22.42062002,84.845,84.785,9.00080008]
[1771000441009,151.36,84.844,84.762,27.61976472]
[1771000441210,151.36,84.844,84.764,27.61976472]
[1771000441511,22.42062002,84.845,84.75,8.58590981]
[1771000441512,151.34,84.843,84.792,10.6211]
[1771000441818,22.4023205,84.842,84.766,27.61976472]
[1771000442201,22.4031606,84.829,84.743,27.61976472]
[1771000442406,8.58590981,84.83,84.744,8.99992494]
[1771000442407,22.4031606,84.827,84.744,8.99992494]
[1771000442710,22.41628063,84.809,84.735,348.42766344]
[1771000442927,22.41628063,84.79,84.735,348.42766344]
[1771000443103,22.41628063,84.79,84.676,27.61976472]
[1771000443104,22.2095567,84.788,84.676,27.61976472]
[1771000443415,22.2095567,84.769,84.718,10.6302]
[1771000443811,22.2095567,84.769,84.695,213.63795779]
[1771000444013,22.22320413,84.758,84.695,186.01819307]
[1771000445506,22.12354408,84.745,84.695,186.01819307]
[1771000445704,151.32,84.744,84.695,186.01819307]
[1771000445919,151.28,84.743,84.695,186.01819307]
[1771000446214,151.34,84.742,84.695,186.01819307]
[1771000446412,151.38,84.741,84.695,186.01819307]
[1771000446613,22.13707848,84.739,84.671,27.61976472]
[1771000446914,151.46,84.738,84.671,27.61976472]
[1771000447307,21.98755665,84.737,84.647,27.61976472]
[1771000447914,22.0000586,84.736,84.659,10.6377]
[1771000448205,22.0000586,84.736,84.647,27.61976472]
[1771000448402,21.2437,84.787,84.647,27.61976472]
[1771000448403,22.00075089,84.727,84.647,27.61976472]
[1771000448622,151.52,84.726,84.647,27.61976472]
[1771000448916,151.54,84.725,84.647,27.61976472]
[1771000449113,21.54640691,84.724,84.647,27.61976472]
[1771000449308,21.54640691,84.722,84.647,27.61976472]
[1771000449511,165.2692,84.766,84.646,267.31508685]
[1771000449512,21.55881558,84.713,84.646,267.31508685]
[1771000450016,21.55881558,84.713,84.621,27.61976472]
[1771000450215,10.6327,84.7,84.625,27.61976472]
[1771000450914,10.6339,84.69,84.625,27.61976472]
[1771000451110,32.19913876,84.69,84.625,27.61976472]
[1771000451316,21.56523876,84.688,84.609,10.644]
[1771000451517,173.1374921,84.687,84.61,27.61976472]
[1771000451815,21.5774921,84.686,84.61,27.61976472]